[Event "*** Titled Tuesday Blitz"]
[Site "Chess.com"]
[Date "2021.03.30"]
[Round "7"]
[White "annamaja"]
[Black "beto-betun"]
[Result "1-0"]
[WhiteElo "2355"]
[BlackElo "2219"]
[TimeControl "180+1"]
[EndTime "11:17:53 PDT"]
[Termination "annamaja won by resignation"]

1. e4 {[%clk 0:03:00.9]} 1... c5 {[%clk 0:02:58.2]} 2. Nf3 {[%clk 0:02:59.9]}
2... d6 {[%clk 0:02:58.5]} 3. d4 {[%clk 0:03:00.1]} 3... cxd4 {[%clk 0:02:59.4]}
4. Nxd4 {[%clk 0:03:00.9]} 4... Nf6 {[%clk 0:03:00.1]} 5. Nc3 {[%clk 0:03:01.2]}
5... a6 {[%clk 0:03:00.7]} 6. Be3 {[%clk 0:03:00.7]} 6... e5 {[%clk 0:03:00.6]}
7. Nb3 {[%clk 0:03:00.5]} 7... Be6 {[%clk 0:03:00.7]} 8. Qd2 {[%clk 0:03:00.6]}
8... Be7 {[%clk 0:03:00.9]} 9. O-O-O {[%clk 0:03:00.5]} 9... O-O {[%clk
0:03:00.1]} 10. Kb1 {[%clk 0:03:00]} 10... b5 {[%clk 0:03:00.4]} 11. Bd3 {[%clk
0:02:41.3]} 11... Nbd7 {[%clk 0:02:57.9]} 12. f4 {[%clk 0:02:39.7]} 12... exf4
{[%clk 0:02:55.9]} 13. Bxf4 {[%clk 0:02:39.3]} 13... Ne5 {[%clk 0:02:56.6]} 14.
h3 {[%clk 0:02:34.7]} 14... Rc8 {[%clk 0:02:37]} 15. g4 {[%clk 0:02:32.4]} 15...
b4 {[%clk 0:02:34]} 16. Ne2 {[%clk 0:02:29]} 16... Qb6 {[%clk 0:02:15.2]} 17.
Be3 {[%clk 0:02:12.1]} 17... Qc7 {[%clk 0:02:05.3]} 18. Nf4 {[%clk 0:01:46.1]}
18... a5 {[%clk 0:01:59.2]} 19. Nd4 {[%clk 0:01:33]} 19... Bc4 {[%clk
0:01:42.7]} 20. g5 {[%clk 0:01:29.1]} 20... Nfd7 {[%clk 0:01:40.3]} 21. Nh5
{[%clk 0:01:14.5]} 21... a4 {[%clk 0:01:28.9]} 22. Nf5 {[%clk 0:01:07.3]} 22...
Nc5 {[%clk 0:01:14.4]} 23. Bxc4 {[%clk 0:00:26]} 23... Nxc4 {[%clk 0:01:12.3]}
24. Qd4 {[%clk 0:00:25.3]} 24... f6 {[%clk 0:01:03.4]} 25. Qxc4+ {[%clk
0:00:21.8]} 25... Kh8 {[%clk 0:01:03.7]} 26. Nhxg7 {[%clk 0:00:17.4]} 26... b3
{[%clk 0:00:58.5]} 27. axb3 {[%clk 0:00:16.1]} 27... axb3 {[%clk 0:00:58.1]} 28.
cxb3 {[%clk 0:00:15.9]} 28... Rb8 {[%clk 0:00:57.4]} 29. Bxc5 {[%clk 0:00:14.8]}
29... dxc5 {[%clk 0:00:58.3]} 30. Ne6 {[%clk 0:00:14.5]} 30... Qe5 {[%clk
0:00:46.9]} 31. Nxe7 {[%clk 0:00:11.6]} 31... Rb4 {[%clk 0:00:41.7]} 32. Nc6
{[%clk 0:00:10.7]} 32... Qxe4+ {[%clk 0:00:20]} 33. Qxe4 {[%clk 0:00:10.7]}
33... Rxe4 {[%clk 0:00:20.9]} 34. Nxf8 {[%clk 0:00:11.6]} 1-0

[Event "*** Titled Tuesday Blitz"]
[Site "Chess.com"]
[Date "2021.03.30"]
[Round "7"]
[White "MartinHollan"]
[Black "DanielTitichoca"]
[Result "1-0"]
[WhiteElo "2449"]
[BlackElo "2281"]
[TimeControl "180+1"]
[EndTime "11:17:54 PDT"]
[Termination "MartinHollan won on time"]

1. d4 {[%clk 0:03:00.9]} 1... Nf6 {[%clk 0:02:58.5]} 2. Nf3 {[%clk 0:03:01.8]}
2... b6 {[%clk 0:02:58.5]} 3. c4 {[%clk 0:03:01.7]} 3... Bb7 {[%clk 0:02:58.8]}
4. Nc3 {[%clk 0:03:01.6]} 4... e6 {[%clk 0:02:59.2]} 5. Bf4 {[%clk 0:02:58.9]}
5... Bb4 {[%clk 0:02:57]} 6. e3 {[%clk 0:02:58.7]} 6... Bxc3+ {[%clk 0:02:56.5]}
7. bxc3 {[%clk 0:02:58.6]} 7... O-O {[%clk 0:02:57.4]} 8. Nd2 {[%clk 0:02:57.6]}
8... d6 {[%clk 0:02:56.3]} 9. Bd3 {[%clk 0:02:54.4]} 9... Nbd7 {[%clk
0:02:54.3]} 10. Qc2 {[%clk 0:02:53.9]} 10... e5 {[%clk 0:02:53.5]} 11. Bg5
{[%clk 0:02:50.5]} 11... h6 {[%clk 0:02:53.3]} 12. Bh4 {[%clk 0:02:48.1]} 12...
Qe8 {[%clk 0:02:53.4]} 13. Rg1 {[%clk 0:02:45.6]} 13... c5 {[%clk 0:02:38.1]}
14. d5 {[%clk 0:02:43.9]} 14... g5 {[%clk 0:02:24.8]} 15. Bg3 {[%clk 0:02:43.5]}
15... Nh5 {[%clk 0:02:24.6]} 16. Bf5 {[%clk 0:02:37.8]} 16... Bc8 {[%clk
0:02:22.5]} 17. Ne4 {[%clk 0:02:31.5]} 17... Qe7 {[%clk 0:02:17]} 18. h4 {[%clk
0:02:29.8]} 18... gxh4 {[%clk 0:02:11.5]} 19. Bh2 {[%clk 0:02:07.2]} 19... Ng7
{[%clk 0:02:10.8]} 20. g4 {[%clk 0:02:04.4]} 20... Kh8 {[%clk 0:01:51.3]} 21.
O-O-O {[%clk 0:01:56.5]} 21... Nf6 {[%clk 0:01:37.3]} 22. Bxc8 {[%clk
0:01:53.8]} 22... Raxc8 {[%clk 0:01:38.2]} 23. g5 {[%clk 0:01:53]} 23... hxg5
{[%clk 0:01:31.9]} 24. Nxg5 {[%clk 0:01:45.3]} 24... Qd7 {[%clk 0:01:18.9]} 25.
Ne4 {[%clk 0:01:34.8]} 25... Nxe4 {[%clk 0:01:10.7]} 26. Qxe4 {[%clk 0:01:33.9]}
26... Qf5 {[%clk 0:01:11.1]} 27. Qxf5 {[%clk 0:01:20.4]} 27... Nxf5 {[%clk
0:01:09.7]} 28. Rg5 {[%clk 0:01:21]} 28... Ne7 {[%clk 0:01:01.2]} 29. Rdg1
{[%clk 0:01:05.4]} 29... Ng6 {[%clk 0:01:00]} 30. f4 {[%clk 0:01:05.4]} 30...
exf4 {[%clk 0:00:19.8]} 31. exf4 {[%clk 0:01:04]} 31... Rfe8 {[%clk 0:00:02]}
32. f5 {[%clk 0:01:03.3]} 32... Nf8 {[%clk 0:00:02.5]} 33. Rg8+ {[%clk
0:00:50.9]} 33... Kh7 {[%clk 0:00:02.1]} 34. R1g7+ {[%clk 0:00:50.2]} 34... Kh6
{[%clk 0:00:03]} 35. Bf4+ {[%clk 0:00:50.3]} 35... Kh5 {[%clk 0:00:01.9]} 36.
Rh8+ {[%clk 0:00:50.2]} 1-0

[Event "*** Titled Tuesday Blitz"]
[Site "Chess.com"]
[Date "2021.03.30"]
[Round "7"]
[White "Murad_Ibrahimli"]
[Black "tsaruk_maks"]
[Result "1-0"]
[WhiteElo "2809"]
[BlackElo "2616"]
[TimeControl "180+1"]
[EndTime "11:17:56 PDT"]
[Termination "Murad_Ibrahimli won by checkmate"]

1. Nf3 {[%clk 0:03:00.9]} 1... Nf6 {[%clk 0:03:00.3]} 2. g3 {[%clk 0:02:58.9]}
2... b6 {[%clk 0:02:59.7]} 3. Bg2 {[%clk 0:02:58.2]} 3... Bb7 {[%clk 0:03:00.3]}
4. O-O {[%clk 0:02:58.3]} 4... g6 {[%clk 0:03:00.2]} 5. c4 {[%clk 0:02:58.8]}
5... Bg7 {[%clk 0:03:00.6]} 6. Nc3 {[%clk 0:02:59.6]} 6... O-O {[%clk
0:03:01.1]} 7. d4 {[%clk 0:02:58.1]} 7... Ne4 {[%clk 0:03:00.9]} 8. Bd2 {[%clk
0:02:57.3]} 8... Nxd2 {[%clk 0:03:00]} 9. Qxd2 {[%clk 0:02:56.7]} 9... d6 {[%clk
0:02:59]} 10. b4 {[%clk 0:02:54.7]} 10... c5 {[%clk 0:02:56.5]} 11. bxc5 {[%clk
0:02:53.4]} 11... dxc5 {[%clk 0:02:37.5]} 12. d5 {[%clk 0:02:53.3]} 12... e6
{[%clk 0:02:37.7]} 13. e4 {[%clk 0:02:52.4]} 13... Ba6 {[%clk 0:02:33.7]} 14.
Qd3 {[%clk 0:02:47.1]} 14... Nc6 {[%clk 0:02:34.2]} 15. Rac1 {[%clk 0:02:39.1]}
15... Nb4 {[%clk 0:02:31]} 16. Qe2 {[%clk 0:02:38.8]} 16... exd5 {[%clk
0:02:31.4]} 17. Nxd5 {[%clk 0:02:34]} 17... Nxd5 {[%clk 0:02:29.4]} 18. exd5
{[%clk 0:02:34.9]} 18... Qxd5 {[%clk 0:02:28.6]} 19. Nh4 {[%clk 0:02:27.4]}
19... Qd8 {[%clk 0:02:00.1]} 20. Bxa8 {[%clk 0:02:25.8]} 20... Qxa8 {[%clk
0:02:01]} 21. Rfe1 {[%clk 0:02:22.6]} 21... Bb7 {[%clk 0:01:38.4]} 22. Rcd1
{[%clk 0:02:15.1]} 22... Qc8 {[%clk 0:01:37.1]} 23. Qe7 {[%clk 0:01:42.8]} 23...
Qc6 {[%clk 0:01:30.1]} 24. Rd5 {[%clk 0:01:41.4]} 24... Bd4 {[%clk 0:01:05.2]}
25. Ng2 {[%clk 0:00:53.5]} 25... b5 {[%clk 0:00:45.1]} 26. Nf4 {[%clk
0:00:33.7]} 26... bxc4 {[%clk 0:00:41.9]} 27. h4 {[%clk 0:00:34]} 27... c3
{[%clk 0:00:33.8]} 28. h5 {[%clk 0:00:34.2]} 28... c2 {[%clk 0:00:32.8]} 29. h6
{[%clk 0:00:32.9]} 29... Bf6 {[%clk 0:00:05.6]} 30. Qxc5 {[%clk 0:00:26.5]}
30... Bb2 {[%clk 0:00:03.5]} 31. Qxf8+ {[%clk 0:00:24.9]} 31... Kxf8 {[%clk
0:00:04.4]} 32. Rd8+ {[%clk 0:00:25.2]} 32... Qe8 {[%clk 0:00:04.3]} 33. Rdxe8#
{[%clk 0:00:25.6]} 1-0

[Event "*** Titled Tuesday Blitz"]
[Site "Chess.com"]
[Date "2021.03.30"]
[Round "7"]
[White "eCztery"]
[Black "maximnovik"]
[Result "0-1"]
[WhiteElo "2387"]
[BlackElo "2562"]
[TimeControl "180+1"]
[EndTime "11:17:56 PDT"]
[Termination "maximnovik won by resignation"]

1. e4 {[%clk 0:03:00.9]} 1... c6 {[%clk 0:02:59.8]} 2. Nc3 {[%clk 0:02:58]} 2...
d5 {[%clk 0:02:59.7]} 3. Nf3 {[%clk 0:02:58.6]} 3... Bg4 {[%clk 0:02:59.4]} 4.
h3 {[%clk 0:02:58.4]} 4... Bxf3 {[%clk 0:02:59.4]} 5. Qxf3 {[%clk 0:02:59.3]}
5... e6 {[%clk 0:02:59.8]} 6. d3 {[%clk 0:02:59.4]} 6... Nf6 {[%clk 0:02:59.5]}
7. Qg3 {[%clk 0:02:58.6]} 7... g6 {[%clk 0:02:48.1]} 8. Bd2 {[%clk 0:02:54.2]}
8... Qb6 {[%clk 0:02:42.2]} 9. O-O-O {[%clk 0:02:51]} 9... d4 {[%clk 0:02:41.5]}
10. Nb1 {[%clk 0:02:37.2]} 10... c5 {[%clk 0:02:32.5]} 11. Na3 {[%clk
0:02:34.8]} 11... Qa6 {[%clk 0:02:18.7]} 12. c4 {[%clk 0:01:17.3]} 12... Nc6
{[%clk 0:02:03.1]} 13. Nb5 {[%clk 0:01:14.1]} 13... Qxa2 {[%clk 0:01:57.5]} 14.
Nc7+ {[%clk 0:01:11.3]} 14... Kd7 {[%clk 0:01:54.6]} 15. Nxa8 {[%clk 0:01:11.7]}
15... Bd6 {[%clk 0:01:54.2]} 16. Qf3 {[%clk 0:00:37.3]} 16... Be5 {[%clk
0:01:44.5]} 17. Be2 {[%clk 0:00:34]} 17... Rxa8 {[%clk 0:01:42.2]} 18. Kc2
{[%clk 0:00:34.4]} 18... Qa4+ {[%clk 0:01:37.6]} 19. Kb1 {[%clk 0:00:33.4]}
19... Nb4 {[%clk 0:01:33.7]} 20. Bxb4 {[%clk 0:00:33.2]} 20... cxb4 {[%clk
0:01:33.4]} 21. Kc1 {[%clk 0:00:25.8]} 21... Qa2 {[%clk 0:01:25.6]} 22. Kd2
{[%clk 0:00:20.6]} 22... Qxb2+ {[%clk 0:01:23.7]} 23. Ke1 {[%clk 0:00:21]} 23...
a5 {[%clk 0:01:22.5]} 24. g4 {[%clk 0:00:19.8]} 24... Ke7 {[%clk 0:01:18.9]} 25.
Kf1 {[%clk 0:00:17.2]} 25... a4 {[%clk 0:01:12.2]} 26. Kg2 {[%clk 0:00:17.2]}
26... b3 {[%clk 0:01:12]} 27. Rb1 {[%clk 0:00:12]} 27... Qc3 {[%clk 0:01:11.4]}
28. Rhc1 {[%clk 0:00:12.3]} 28... Qb4 {[%clk 0:01:11.4]} 29. Bd1 {[%clk
0:00:12.9]} 29... Nd7 {[%clk 0:01:07.8]} 30. Qe2 {[%clk 0:00:10.3]} 30... g5
{[%clk 0:01:06.2]} 31. Kf1 {[%clk 0:00:04.8]} 31... Bf4 {[%clk 0:01:05.4]} 32.
f3 {[%clk 0:00:02.6]} 32... Bxc1 {[%clk 0:01:04.5]} 33. Rxc1 {[%clk 0:00:03.5]}
33... b2 {[%clk 0:01:02.4]} 34. Rb1 {[%clk 0:00:03.6]} 34... a3 {[%clk
0:01:02.5]} 35. f4 {[%clk 0:00:03.4]} 35... Qc3 {[%clk 0:00:56.1]} 36. fxg5
{[%clk 0:00:03.3]} 36... a2 {[%clk 0:00:56.1]} 37. Rxb2 {[%clk 0:00:03.5]} 37...
a1=Q {[%clk 0:00:55.2]} 38. Rxb7 {[%clk 0:00:03.8]} 38... Qcc1 {[%clk
0:00:52.1]} 39. Qf2 {[%clk 0:00:03.4]} 39... Qxd1+ {[%clk 0:00:47.9]} 40. Kg2
{[%clk 0:00:04.3]} 40... Ra2 {[%clk 0:00:45.4]} 0-1

[Event "*** Titled Tuesday Blitz"]
[Site "Chess.com"]
[Date "2021.03.30"]
[Round "7"]
[White "Mazanchenko_Dmitry"]
[Black "tandaleo"]
[Result "0-1"]
[WhiteElo "2210"]
[BlackElo "2353"]
[TimeControl "180+1"]
[EndTime "11:17:56 PDT"]
[Termination "tandaleo won on time"]

1. e4 {[%clk 0:03:00.9]} 1... e6 {[%clk 0:02:55.5]} 2. d4 {[%clk 0:03:00]} 2...
d5 {[%clk 0:02:55.6]} 3. Nc3 {[%clk 0:02:59.3]} 3... Bb4 {[%clk 0:02:54.6]} 4.
Ne2 {[%clk 0:02:58.3]} 4... Nf6 {[%clk 0:02:50.1]} 5. Bg5 {[%clk 0:02:55.4]}
5... dxe4 {[%clk 0:02:45.6]} 6. a3 {[%clk 0:02:54]} 6... Be7 {[%clk 0:02:37.2]}
7. Bxf6 {[%clk 0:02:53.6]} 7... Bxf6 {[%clk 0:02:37.4]} 8. Nxe4 {[%clk
0:02:53.1]} 8... b6 {[%clk 0:02:32.3]} 9. Nxf6+ {[%clk 0:02:35.5]} 9... gxf6
{[%clk 0:02:31.1]} 10. Nc3 {[%clk 0:02:28.4]} 10... Bb7 {[%clk 0:02:30.2]} 11.
Qd2 {[%clk 0:02:27.2]} 11... Nd7 {[%clk 0:02:13.8]} 12. O-O-O {[%clk 0:02:20.7]}
12... Qe7 {[%clk 0:02:13.6]} 13. d5 {[%clk 0:02:17.9]} 13... e5 {[%clk
0:02:12.8]} 14. Nb5 {[%clk 0:02:07.1]} 14... Nc5 {[%clk 0:02:07.2]} 15. d6
{[%clk 0:02:02.5]} 15... cxd6 {[%clk 0:02:06.9]} 16. Nxd6+ {[%clk 0:01:58.1]}
16... Kf8 {[%clk 0:02:06.3]} 17. Qh6+ {[%clk 0:01:43]} 17... Kg8 {[%clk
0:02:03.8]} 18. Nf5 {[%clk 0:01:43.9]} 18... Qf8 {[%clk 0:01:56.9]} 19. Qxf6
{[%clk 0:01:41.6]} 19... h5 {[%clk 0:01:57]} 20. Bc4 {[%clk 0:01:14.3]} 20...
Ne4 {[%clk 0:01:44.5]} 21. Ne7+ {[%clk 0:01:01]} 21... Kh7 {[%clk 0:01:43.7]}
22. Qf5+ {[%clk 0:01:01.2]} 22... Kg7 {[%clk 0:01:42.1]} 23. Qxe5+ {[%clk
0:01:01.3]} 23... f6 {[%clk 0:01:38.9]} 24. Nf5+ {[%clk 0:01:01.3]} 24... Kg6
{[%clk 0:01:37.7]} 25. Qf4 {[%clk 0:00:54.1]} 25... Rd8 {[%clk 0:01:18.8]} 26.
f3 {[%clk 0:00:38.4]} 26... Ng5 {[%clk 0:01:01]} 27. h4 {[%clk 0:00:30.1]} 27...
Nf7 {[%clk 0:00:58.7]} 28. Bd3 {[%clk 0:00:19.8]} 28... Rxd3 {[%clk 0:00:40.6]}
29. Rxd3 {[%clk 0:00:20.7]} 29... Ne5 {[%clk 0:00:41]} 30. Rd6 {[%clk
0:00:14.5]} 30... Bc8 {[%clk 0:00:37.3]} 31. Qg3+ {[%clk 0:00:10.6]} 31... Kf7
{[%clk 0:00:35.8]} 32. Rhd1 {[%clk 0:00:01.4]} 32... Bxf5 {[%clk 0:00:35.3]} 33.
Qf4 {[%clk 0:00:01.9]} 33... Qc8 {[%clk 0:00:31.4]} 0-1

[Event "*** Titled Tuesday Blitz"]
[Site "Chess.com"]
[Date "2021.03.30"]
[Round "7"]
[White "scarabee43"]
[Black "Eternauta2400"]
[Result "1-0"]
[WhiteElo "2574"]
[BlackElo "2388"]
[TimeControl "180+1"]
[EndTime "11:17:57 PDT"]
[Termination "scarabee43 won by resignation"]

1. d4 {[%clk 0:03:00.9]} 1... Nf6 {[%clk 0:02:59.9]} 2. c4 {[%clk 0:03:01.1]}
2... e6 {[%clk 0:03:00.3]} 3. Nf3 {[%clk 0:03:00.8]} 3... c5 {[%clk 0:03:00.4]}
4. d5 {[%clk 0:03:00.3]} 4... exd5 {[%clk 0:03:00.5]} 5. cxd5 {[%clk 0:03:00.3]}
5... d6 {[%clk 0:03:01.4]} 6. Nc3 {[%clk 0:03:00.4]} 6... g6 {[%clk 0:03:00.6]}
7. e4 {[%clk 0:03:00.8]} 7... Bg7 {[%clk 0:03:00.7]} 8. Nd2 {[%clk 0:03:01.1]}
8... Nbd7 {[%clk 0:02:59.2]} 9. Be2 {[%clk 0:03:00]} 9... O-O {[%clk 0:02:58.3]}
10. O-O {[%clk 0:02:59.9]} 10... Re8 {[%clk 0:02:58.8]} 11. a4 {[%clk
0:02:59.4]} 11... a6 {[%clk 0:02:57.8]} 12. f4 {[%clk 0:02:53.3]} 12... Qc7
{[%clk 0:02:43.5]} 13. Qc2 {[%clk 0:02:45.5]} 13... Rb8 {[%clk 0:02:39]} 14. Kh1
{[%clk 0:02:32.8]} 14... c4 {[%clk 0:02:38.5]} 15. Bxc4 {[%clk 0:02:16.3]} 15...
b5 {[%clk 0:02:38.4]} 16. axb5 {[%clk 0:02:05.1]} 16... axb5 {[%clk 0:02:39.3]}
17. Bd3 {[%clk 0:02:01.8]} 17... b4 {[%clk 0:02:35.4]} 18. Nd1 {[%clk
0:02:00.4]} 18... Nc5 {[%clk 0:02:31.2]} 19. Nf2 {[%clk 0:01:57.2]} 19... b3
{[%clk 0:02:27.2]} 20. Qb1 {[%clk 0:01:51.7]} 20... Bd7 {[%clk 0:02:13.4]} 21.
Rd1 {[%clk 0:01:22.2]} 21... Nxd3 {[%clk 0:01:46.9]} 22. Qxd3 {[%clk 0:01:19.9]}
22... Qc2 {[%clk 0:01:47.1]} 23. Qf3 {[%clk 0:01:13.9]} 23... Rb4 {[%clk
0:01:17]} 24. Ra7 {[%clk 0:00:48.6]} 24... Bb5 {[%clk 0:01:07.6]} 25. h3 {[%clk
0:00:29]} 25... Nxd5 {[%clk 0:01:06.9]} 26. f5 {[%clk 0:00:25.9]} 26... gxf5
{[%clk 0:00:30.3]} 27. Qxf5 {[%clk 0:00:17.6]} 27... Ne7 {[%clk 0:00:30.1]} 28.
Qg5 {[%clk 0:00:15.9]} 28... Ng6 {[%clk 0:00:27.7]} 29. Nf3 {[%clk 0:00:12.2]}
29... Qxf2 {[%clk 0:00:25.2]} 30. Rb7 {[%clk 0:00:09.8]} 30... h6 {[%clk
0:00:21.7]} 31. Qf5 {[%clk 0:00:09.3]} 31... Bf1 {[%clk 0:00:21.2]} 32. Qxf7+
{[%clk 0:00:08.8]} 1-0

[Event "*** Titled Tuesday Blitz"]
[Site "Chess.com"]
[Date "2021.03.30"]
[Round "7"]
[White "monikarozman"]
[Black "WinnieTPooh"]
[Result "1-0"]
[WhiteElo "2228"]
[BlackElo "1942"]
[TimeControl "180+1"]
[EndTime "11:17:58 PDT"]
[Termination "monikarozman won on time"]

1. d4 {[%clk 0:03:00.9]} 1... Nf6 {[%clk 0:02:55.5]} 2. c4 {[%clk 0:02:58]} 2...
c5 {[%clk 0:02:55.5]} 3. d5 {[%clk 0:02:57.5]} 3... e6 {[%clk 0:02:55.9]} 4. Nc3
{[%clk 0:02:56.2]} 4... exd5 {[%clk 0:02:56.2]} 5. cxd5 {[%clk 0:02:56.5]} 5...
d6 {[%clk 0:02:56.8]} 6. Nf3 {[%clk 0:02:52.9]} 6... g6 {[%clk 0:02:56.9]} 7.
Bf4 {[%clk 0:02:52.8]} 7... a6 {[%clk 0:02:56.5]} 8. a4 {[%clk 0:02:52.2]} 8...
Bg7 {[%clk 0:02:49.5]} 9. h3 {[%clk 0:02:52]} 9... O-O {[%clk 0:02:35.8]} 10. e3
{[%clk 0:02:51.2]} 10... Qe7 {[%clk 0:02:35.8]} 11. Bd3 {[%clk 0:02:46.1]} 11...
Nbd7 {[%clk 0:02:34.2]} 12. O-O {[%clk 0:02:43.7]} 12... Rb8 {[%clk 0:02:34.1]}
13. Bh2 {[%clk 0:02:24]} 13... Ne8 {[%clk 0:02:13.7]} 14. Qe2 {[%clk 0:02:00.2]}
14... Nc7 {[%clk 0:02:05.3]} 15. e4 {[%clk 0:01:41.2]} 15... Re8 {[%clk
0:01:52.1]} 16. Rae1 {[%clk 0:01:19.8]} 16... b6 {[%clk 0:00:45.5]} 17. Kh1
{[%clk 0:01:14.1]} 17... h5 {[%clk 0:00:38.7]} 18. Nd2 {[%clk 0:01:06.6]} 18...
Ne5 {[%clk 0:00:28.5]} 19. f4 {[%clk 0:01:05.6]} 19... Nxd3 {[%clk 0:00:24.5]}
20. Qxd3 {[%clk 0:01:06.5]} 20... b5 {[%clk 0:00:24.8]} 21. axb5 {[%clk
0:01:04.7]} 21... axb5 {[%clk 0:00:25.7]} 22. e5 {[%clk 0:00:58.7]} 22... Bf5
{[%clk 0:00:13.1]} 23. Qf3 {[%clk 0:00:55.3]} 23... Qd7 {[%clk 0:00:10]} 24.
Nde4 {[%clk 0:00:30.6]} 24... dxe5 {[%clk 0:00:05.9]} 25. Nxc5 {[%clk
0:00:21.4]} 25... Qe7 {[%clk 0:00:01.7]} 26. N5e4 {[%clk 0:00:11.8]} 26... Qb4
{[%clk 0:00:01.6]} 27. d6 {[%clk 0:00:11.2]} 1-0

[Event "*** Titled Tuesday Blitz"]
[Site "Chess.com"]
[Date "2021.03.30"]
[Round "7"]
[White "dosto07"]
[Black "pastouche06"]
[Result "0-1"]
[WhiteElo "2412"]
[BlackElo "2551"]
[TimeControl "180+1"]
[EndTime "11:18:01 PDT"]
[Termination "pastouche06 won on time"]

1. d4 {[%clk 0:02:57.8]} 1... d5 {[%clk 0:02:59.3]} 2. Nf3 {[%clk 0:02:55.4]}
2... Nf6 {[%clk 0:02:59.1]} 3. Bf4 {[%clk 0:02:55.7]} 3... c5 {[%clk 0:02:56.6]}
4. e3 {[%clk 0:02:55.4]} 4... Nc6 {[%clk 0:02:54.7]} 5. Nbd2 {[%clk 0:02:54.3]}
5... e6 {[%clk 0:02:54.8]} 6. c3 {[%clk 0:02:52.6]} 6... Bd6 {[%clk 0:02:54.5]}
7. Bg3 {[%clk 0:02:52]} 7... O-O {[%clk 0:02:52]} 8. Bb5 {[%clk 0:02:50.9]} 8...
Be7 {[%clk 0:02:48.4]} 9. Bxc6 {[%clk 0:02:36.3]} 9... bxc6 {[%clk 0:02:46.6]}
10. Ne5 {[%clk 0:02:37.2]} 10... Qb6 {[%clk 0:02:39.7]} 11. Qb3 {[%clk
0:02:25.1]} 11... Qa6 {[%clk 0:02:28.8]} 12. c4 {[%clk 0:01:43.2]} 12... cxd4
{[%clk 0:02:21]} 13. exd4 {[%clk 0:01:42.5]} 13... Nh5 {[%clk 0:01:50.2]} 14.
O-O {[%clk 0:01:35.7]} 14... Nxg3 {[%clk 0:01:46.6]} 15. hxg3 {[%clk 0:01:34.5]}
15... Bd6 {[%clk 0:01:33.7]} 16. c5 {[%clk 0:01:20.7]} 16... Rb8 {[%clk
0:01:25.9]} 17. Qc2 {[%clk 0:01:17.3]} 17... Bc7 {[%clk 0:01:09.1]} 18. Rfe1
{[%clk 0:01:01]} 18... f6 {[%clk 0:00:53.5]} 19. Nd3 {[%clk 0:00:55.2]} 19...
Qb5 {[%clk 0:00:47.7]} 20. b4 {[%clk 0:00:52.5]} 20... Ba6 {[%clk 0:00:41.7]}
21. Re3 {[%clk 0:00:31.2]} 21... Rbe8 {[%clk 0:00:25.5]} 22. Rae1 {[%clk
0:00:16.1]} 22... Bc8 {[%clk 0:00:17.8]} 23. a4 {[%clk 0:00:15]} 23... Qb8
{[%clk 0:00:17.9]} 24. Nb3 {[%clk 0:00:12]} 24... e5 {[%clk 0:00:16.7]} 25. dxe5
{[%clk 0:00:11]} 25... fxe5 {[%clk 0:00:17.6]} 26. Rf3 {[%clk 0:00:05.7]} 26...
e4 {[%clk 0:00:14.8]} 27. Rxf8+ {[%clk 0:00:04.2]} 27... Rxf8 {[%clk 0:00:15.7]}
28. Nb2 {[%clk 0:00:02.9]} 28... Be5 {[%clk 0:00:12.8]} 29. Nd2 {[%clk
0:00:01.6]} 29... Qxb4 {[%clk 0:00:11.8]} 0-1

[Event "*** Titled Tuesday Blitz"]
[Site "Chess.com"]
[Date "2021.03.30"]
[Round "7"]
[White "BrandonJacobson"]
[Black "GigaQuparadze"]
[Result "0-1"]
[WhiteElo "2969"]
[BlackElo "2895"]
[TimeControl "180+1"]
[EndTime "11:18:03 PDT"]
[Termination "GigaQuparadze won by checkmate"]

1. d4 {[%clk 0:03:00.9]} 1... Nf6 {[%clk 0:02:59.5]} 2. c4 {[%clk 0:03:01.3]}
2... e6 {[%clk 0:02:59.8]} 3. Nf3 {[%clk 0:03:01.5]} 3... b6 {[%clk 0:02:59.7]}
4. g3 {[%clk 0:03:01.9]} 4... Bb4+ {[%clk 0:02:58.9]} 5. Bd2 {[%clk 0:03:01.6]}
5... Be7 {[%clk 0:02:55.7]} 6. Bg2 {[%clk 0:03:00.9]} 6... c6 {[%clk 0:02:55.5]}
7. Bf4 {[%clk 0:02:57.7]} 7... O-O {[%clk 0:02:53.7]} 8. Nc3 {[%clk 0:02:57.3]}
8... d5 {[%clk 0:02:53.9]} 9. Qd3 {[%clk 0:02:46.4]} 9... Ba6 {[%clk 0:02:52.2]}
10. b3 {[%clk 0:02:43.3]} 10... c5 {[%clk 0:02:40.9]} 11. dxc5 {[%clk
0:02:30.4]} 11... Bxc5 {[%clk 0:02:40.1]} 12. Ne5 {[%clk 0:02:22.4]} 12... Nbd7
{[%clk 0:02:32.7]} 13. Nxd7 {[%clk 0:01:34]} 13... Qxd7 {[%clk 0:02:33.6]} 14.
Bg5 {[%clk 0:01:33.4]} 14... Ng4 {[%clk 0:02:19.4]} 15. O-O {[%clk 0:01:24.1]}
15... h6 {[%clk 0:02:19.1]} 16. Bf4 {[%clk 0:01:02.3]} 16... Rad8 {[%clk
0:02:16.7]} 17. Rad1 {[%clk 0:01:01.2]} 17... e5 {[%clk 0:02:01.8]} 18. Bc1
{[%clk 0:00:54.1]} 18... d4 {[%clk 0:02:01.8]} 19. Nd5 {[%clk 0:00:50.9]} 19...
Be7 {[%clk 0:01:57.3]} 20. Be4 {[%clk 0:00:44.3]} 20... Nf6 {[%clk 0:01:50.5]}
21. Nxf6+ {[%clk 0:00:42.9]} 21... Bxf6 {[%clk 0:01:51.4]} 22. e3 {[%clk
0:00:43.8]} 22... Bb7 {[%clk 0:01:47]} 23. exd4 {[%clk 0:00:44.3]} 23... exd4
{[%clk 0:01:45.7]} 24. Rfe1 {[%clk 0:00:42.6]} 24... Rfe8 {[%clk 0:01:44.2]} 25.
Bf4 {[%clk 0:00:32.5]} 25... Qc8 {[%clk 0:01:33.1]} 26. Bc1 {[%clk 0:00:23.7]}
26... Bxe4 {[%clk 0:01:16.8]} 27. Rxe4 {[%clk 0:00:24.6]} 27... Rxe4 {[%clk
0:01:17.2]} 28. Qxe4 {[%clk 0:00:25.5]} 28... Re8 {[%clk 0:01:17.4]} 29. Qf3
{[%clk 0:00:23.2]} 29... Qe6 {[%clk 0:01:15.5]} 30. Bb2 {[%clk 0:00:17.6]} 30...
Rd8 {[%clk 0:01:14.7]} 31. Qd3 {[%clk 0:00:16.4]} 31... h5 {[%clk 0:01:13.3]}
32. b4 {[%clk 0:00:12.9]} 32... h4 {[%clk 0:01:12.7]} 33. c5 {[%clk 0:00:07.6]}
33... bxc5 {[%clk 0:01:12.3]} 34. bxc5 {[%clk 0:00:08.5]} 34... h3 {[%clk
0:01:12.2]} 35. Qf3 {[%clk 0:00:06.6]} 35... Qxa2 {[%clk 0:01:10.6]} 36. Bc1
{[%clk 0:00:06.7]} 36... Qc2 {[%clk 0:01:07.7]} 37. c6 {[%clk 0:00:05]} 37... d3
{[%clk 0:01:07.7]} 38. Bf4 {[%clk 0:00:04.4]} 38... d2 {[%clk 0:01:01.1]} 39. c7
{[%clk 0:00:04.5]} 39... Re8 {[%clk 0:01:01.3]} 40. Bxd2 {[%clk 0:00:01.4]}
40... Qxc7 {[%clk 0:01:00.4]} 41. Bf4 {[%clk 0:00:01.4]} 41... Qc2 {[%clk
0:00:59.2]} 42. Qg4 {[%clk 0:00:01.8]} 42... a5 {[%clk 0:00:53.7]} 43. Rf1
{[%clk 0:00:01.6]} 43... Qc8 {[%clk 0:00:52.4]} 44. Qh5 {[%clk 0:00:01.9]} 44...
a4 {[%clk 0:00:51.7]} 45. Qa5 {[%clk 0:00:02.4]} 45... Qa8 {[%clk 0:00:51.5]}
46. Qh5 {[%clk 0:00:02.7]} 46... Qg2# {[%clk 0:00:50.2]} 0-1